Cogmind - Beta 14 @@@ ROGUE MODE // 2025.01.15 @ 13:27:38 Player: PeanutArbuckle Result: Self-destructed Performance ------------- Evolutions (1) 500 Regions Visited (2) 400 Robots Destroyed (15) 75 Value Destroyed (341) 341 Prototype IDs (0) 0 Alien Tech Used (0) 0 Bonus (0) 0 TOTAL SCORE: 1316 Bonus ------- None Cogmind --------- Core Integrity 318/400 Matter 171/300 Energy 100/100 System Corruption 0% Temperature Cool (0) Movement Flying (37) Location -9/Materials Parts ------- > --- POWER (1) -------- (None) > --- PROPULSION (2) --- Flight Unit Flight Unit > --- UTILITY (4) ------ Small Storage Unit Targeting Computer > --- WEAPON (2) ------- (None) > --- INVENTORY (8) ---- (None) Peak State ------------ > --- POWER ------------ Light Nuclear Core > --- PROPULSION ------- Light Treads Light Treads > --- UTILITY ---------- Small Storage Unit Targeting Computer > --- WEAPON ----------- Light Cannon Light Cannon > --- INVENTORY -------- Ion Engine Light Ion Engine Flight Unit Light Cannon Grenade Launcher [Rating: 9] Favorites ----------- Power Ion Engine Engine Ion Engine Power Core Light Nuclear Core Propulsion Light Treads Treads Light Treads Flight Unit Flight Unit Utility Small Storage Unit Storage Small Storage Unit Processor Targeting Computer Weapon Light Cannon Energy Gun Small Laser Ballistic Gun Assault Rifle Ballistic Cannon Light Cannon Launcher Grenade Launcher Special Weapon Mining Laser Build | -11 -10 -9 ------- Run | Yrd Mat Mat Slots Evolved 2 | . . 2 Power . | . . . Propulsion . | . . . Utility 2 | . . 2 Weapon . | . . . Parts Attached 22 | 6 16 . Power 5 | 1 4 . Engine 3 | 1 2 . Core 2 | . 2 . Reactor . | . . . Propulsion 4 | 2 2 . Treads 2 | 2 . . Leg . | . . . Wheel . | . . . Hover . | . . . Flight 2 | . 2 . Utility 2 | 1 1 . Device . | . . . Storage 1 | 1 . . Processor 1 | . 1 . Hackware . | . . . Protection . | . . . Artifact . | . . . Weapon 11 | 2 9 . Energy Gun 1 | 1 . . Energy Cannon . | . . . Ballistic Gun 1 | 1 . . Ballistic Cannon 5 | . 5 . Launcher 3 | . 3 . Special Weapon 1 | . 1 . Impact Weapon . | . . . Slashing Weapon . | . . . Piercing Weapon . | . . . Special Melee Weapon . | . . . Unidentified Prototypes . | . . . Parts Lost 6 | . 3 3 Power 2 | . 1 1 Propulsion . | . . . Utility . | . . . Weapon 4 | . 2 2 Highest Loss Streak 3 | . 3 2 To Critical Strikes 1 | . . 1 Average Slot Usage (%) 92 | . 96 67 Engine 11 | . 13 . Core 2 | . . 9 Treads 22 | . 26 . Flight 4 | . 1 22 Storage 13 | . 14 11 Processor 11 | . 11 11 Energy Gun 3 | . 3 . Ballistic Gun 4 | . 5 . Ballistic Cannon 15 | . 16 13 Launcher 1 | . 2 . Peak Build Rating 9 | 6 9 9 Average Rating 6 | 3 6 7 On Entrance 5 | . 6 9 Naked Turns . | . . . Heaviest Build 16 | 13 16 16 Greatest Support 40 | 40 40 8 Greatest Overweight (x) 1 | . 1 1 Average Overweight (x) . | . . . Largest Inventory Capacity 8 | 8 8 8 Average Capacity 7 | 6 8 8 Most Carried 6 | 4 6 . Average Carried 2 | 1 3 . Final Capacity 8 | 8 8 8 Final Carried 1 | 1 . . Class Distribution -------------------- 100% | Mutant Dominant Class ---------------- Mutant | -10/Materials Mutant | -9/Materials Resources | -11 -10 -9 ----------- Run | Yrd Mat Mat Matter Collected 596 | 258 320 18 Remotely . | . . . Salvage Created 369 | . 331 38 Parts 29 | . 23 6 Haulers Intercepted 1 | . 1 . Recyclers Shooed . | . . . Parts Field Recycled . | . . . Retrieved Matter . | . . . Parts Self-Destructed . | . . . Prevented . | . . . Kills | -11 -10 -9 ------- Run | Yrd Mat Mat Combat Hostiles Destroyed 13 | . 10 3 Cannons 11 | . 8 3 AOE 2 | . 2 . Classes Destroyed 4 | . 3 1 Builder 1 | . . 1 Hauler 1 | . 1 . Swarmer 6 | . 3 3 Grunt 7 | . 7 . Best Kill Streak 4 | . 3 4 Combat Bots Only 3 | . 3 3 Max Kills in Single Turn 2 | . 2 2 Gunslinging . | . . . Exploded 2 | . 2 . Melee . | . . . Uniques/NPCs Destroyed . | . . . Combat | -11 -10 -9 -------- Run | Yrd Mat Mat Hostile Shots Fired 79 | . 21 58 Missed 26 | . 7 19 Damage Taken 1137 | . 816 321 Core 231 | . 149 82 Absorbed by Shields . | . . . Core Remaining (%) 70 | 100 40 . Volleys Fired 52 | . 28 24 Largest 2 | . 2 2 Hottest 100 | . 100 70 Shots Fired 75 | . 45 30 Gun 4 | . 4 . Cannon 59 | . 29 30 Launcher 4 | . 4 . Special 8 | . 8 . Kinetic 63 | . 33 30 Thermal 8 | . 8 . Explosive 4 | . 4 . Electromagnetic . | . . . Robot Hit Streak 10 | . 10 3 Robot Miss Streak 7 | . 4 7 Penetration Max . | . . . Secondary Targets . | . . . Shots Hit Robots 28 | . 18 10 Core Hits 19 | . 15 4 Critical Kills . | . . . Critical Parts Destroyed . | . . . Critical Strikes . | . . . Melee Attacks . | . . . Impact . | . . . Slashing . | . . . Piercing . | . . . Sneak Attacks . | . . . Combat Hostiles . | . . . Follow-up Attacks . | . . . Damage Inflicted 631 | . 440 191 Guns 10 | . 10 . Cannons 456 | . 265 191 Explosions 163 | . 163 . Melee . | . . . Ramming 2 | . 2 . Kinetic 466 | . 275 191 Thermal . | . . . Explosive 163 | . 163 . Electromagnetic . | . . . Impact . | . . . Slashing . | . . . Piercing . | . . . Highest Corruption 14 | . 14 . Average Corruption 5 | . 5 . Corruption Purged . | . . . Corruption Blocked . | . . . Effects 22 | . 22 . Matter Fused 6 | . 6 . Heat Flow Errors 4 | . 4 . Energy Discharges 4 | . 4 . Data Loss (minor) 3 | . 3 . Data Loss (major) 1 | . 1 . Misfires 2 | . 2 . Alerts 1 | . 1 . Weapon Failures 1 | . 1 . Overload Shots . | . . . Overflow Damage 11 | . . 11 Projectiles 11 | . . 11 Explosions . | . . . Melee . | . . . Knockbacks 5 | . 2 3 Impact . | . . . Kinetic 5 | . 2 3 Secondary . | . . . Self-Inflicted Damage 72 | . 72 . Shots 2 | . 2 . Rammed 1 | . 1 . Targets Rammed 1 | . 1 . Kicked . | . . . Crushed . | . . . Highest Temperature 259 | . 259 48 Average Temperature 51 | . 56 23 Received Heat Transfer 66 | . 54 12 Siege Activations . | . . . Robots Corrupted . | . . . Combat Hostiles . | . . . Parts Fried . | . . . Impact Corruptions . | . . . Robots Melted . | . . . Combat Hostiles . | . . . Parts Melted . | . . . Heat Transferred . | . . . Parts Sabotaged . | . . . Parts Stolen . | . . . Parts Stripped . | . . . Power Chain Reactions . | . . . Alert | -11 -10 -9 ------- Run | Yrd Mat Mat Peak Influence 222 | . 222 136 Initial 39 | . . 39 Average 59 | . 59 91 Maximum Alert Level 1 | . 1 . Low Security (%) 92 | 100 90 100 Level 1 7 | . 9 . Level 2 . | . . . Level 3 . | . . . Level 4 . | . . . Level 5 . | . . . High Security . | . . . Max Security . | . . . Squads Dispatched 4 | . 2 2 Investigation . | . . . Extermination . | . . . Reinforcement 4 | . 2 2 Assault . | . . . Garrison . | . . . Intercept . | . . . Searches Triggered . | . . . Construction Impeded . | . . . Haulers Reinforced . | . . . Active Scanning Responses . | . . . Cargo Convoy Interrupts . | . . . Stealth | -11 -10 -9 --------- Run | Yrd Mat Mat Distress Signals 2 | . 1 1 Communications Jammed . | . . . Distress Signals . | . . . Times Spotted 28 | . 17 11 Peak Tracking Total 6 | . 4 6 Tactical Retreats 1 | . . 1 Traps | -11 -10 -9 ------- Run | Yrd Mat Mat Traps Triggered 2 | . 2 . Indirectly . | . . . Trap Hack Attempts . | . . . Triggered . | . . . Disarmed . | . . . Reprogrammed . | . . . Reused . | . . . Traps Extracted . | . . . Installed . | . . . Triggered . | . . . Machines | -11 -10 -9 ---------- Run | Yrd Mat Mat Machines Disabled 1 | . 1 . Max in Single Turn 1 | . 1 . Machines Repaired . | . . . Machines Dismantled . | . . . Machines Sabotaged . | . . . Overloaded Fab Kills . | . . . Hacking | -11 -10 -9 --------- Run | Yrd Mat Mat Machines Accessed 1 | . 1 . Terminals 1 | . 1 . Fabricators . | . . . Repair Stations . | . . . Recycling Units . | . . . Scanalyzers . | . . . Garrison Access . | . . . Total Hacks 8 | . 8 . Successful 5 | . 5 . Failed 3 | . 3 . Catastrophic . | . . . Database Lockouts . | . . . Manual . | . . . Terminals 8 | . 8 . Fabricators . | . . . Repair Stations . | . . . Recycling Units . | . . . Scanalyzers . | . . . Garrison Access . | . . . Terminal Hacks 5 | . 5 . Record 5 | . 5 . Fabricator Hacks . | . . . Repair Station Hacks . | . . . Recycling Unit Hacks . | . . . Scanalyzer . | . . . Garrison Access Hacks . | . . . Unauthorized Hacks . | . . . Terminals . | . . . Fabricators . | . . . Repair Stations . | . . . Recycling Units . | . . . Scanalyzers . | . . . Garrison Access . | . . . Data Cores Recovered . | . . . Used . | . . . Hacking Detections 1 | . 1 . Full Trace Events 1 | . 1 . Feedback Events . | . . . Feedback Blocked . | . . . Robot Schematics Acquired . | . . . Robots Built . | . . . Authchips . | . . . Time . | . . . Total Robot Build Rating . | . . . Part Schematics Acquired . | . . . Parts Built . | . . . Authchips . | . . . Time . | . . . Total Part Build Rating . | . . . Parts Repaired . | . . . Time . | . . . Parts Recycled . | . . . Recycled Matter . | . . . Retrieved Matter . | . . . Retrieved Components . | . . . Parts Scanalyzed . | . . . Part Schematics Acquired . | . . . Parts Damaged . | . . . Bothacking | -11 -10 -9 ------------ Run | Yrd Mat Mat Used RIF Installer . | . . . Robots Hacked . | . . . Non-combat . | . . . Combat . | . . . Robot Hacks Applied . | . . . Relay Couplers Released . | . . . Fabnet Peak Effective % . | . . . Robots Rewired . | . . . Allies Hacked . | . . . Hacks Repelled . | . . . Allies | -11 -10 -9 -------- Run | Yrd Mat Mat Total Allies . | . . . Largest Group . | . . . Highest-Rated Group . | . . . Highest-Rated Ally . | . . . Total Orders . | . . . Ally Attacks . | . . . Total Damage . | . . . Kills . | . . . Allies Corrupted . | . . . Allies Melted . | . . . Intel | -11 -10 -9 ------- Run | Yrd Mat Mat Robot Analysis Total . | . . . Derelict Logs Recovered . | . . . Drone Launches . | . . . Drone Recoveries . | . . . Exploration | -11 -10 -9 ------------- Run | Yrd Mat Mat Turns Passed 1213 | 88 976 149 Spaces Moved 667 | 51 509 107 Core 5 | 5 . . Treads 507 | 46 461 . Legs . | . . . Wheels . | . . . Hover . | . . . Flight 155 | . 48 107 Fastest Speed 37 | 50 117 37 Average Speed 143 | 149 155 80 Slowest Speed 160 | 160 160 117 Overloaded Moves . | . . . Propulsion Burnouts . | . . . Robots Hopped . | . . . Cave-ins Triggered 2 | . 2 . Exploration Rate (%) 22 | 4 54 10 Regions Visited 2 Branch Regions . Pre-discovered Areas . | . . . Known Exits Taken . | . . . Unknown Exits Taken 2 | 1 1 . Scrap Searched . | . . . Spaces Dug 16 | . 16 . Terrain Destroyed 43 | . 43 . Melee . | . . . Projectile 8 | . 8 . AOE 35 | . 35 . Terrain Rammed . | . . . Walls Destroyed . | . . . Machines Disabled . | . . . Actions | -11 -10 -9 --------- Run | Yrd Mat Mat Total 831 | 63 628 140 Wait 67 | . 58 9 Move 664 | 50 507 107 Hop . | . . . Pick Up 17 | 7 10 . Fast Attach . | . . . Attach 10 | 6 4 . Detach . | . . . Swap 12 | . 12 . Drop 7 | . 7 . Fire 52 | . 28 24 Melee . | . . . Ram . | . . . Kick . | . . . Crush 1 | . 1 . Escape Stasis 1 | . 1 . Rewire . | . . . Trap . | . . . Miscellaneous . | . . . Route ------- -11/Scrapyard -10/Materials -9/Materials History --------- Turn | Location | Event 3 | -11/Scrapyard | Discovered new exit (range 15) 89 | -11/Scrapyard | Entered Materials 315 | -10/Materials | Build established: Mutant 990 | -10/Materials | Crushed by falling debris 994 | -10/Materials | Crushed by falling debris 995 | -10/Materials | Core integrity fell below 50% 995 | -10/Materials | System corruption reached 10% 1025 | -10/Materials | Lost 3 parts (1p2w) 1051 | -10/Materials | Discovered new exit (range 12) 1065 | -10/Materials | Entered another Materials area 1065 | -9/Materials | Evolved 2 slots: Utility x2 1214 | -9/Materials | Self-destructed Last Messages --------------- ALERT: Hostiles spotted, dispatching reinforcements to Terminal M004. Acquired 3 matter. K-01 Serf collects debris. O-16 Technician sends out distress signal. S-10 Pest destroyed. ALERT: Hostiles spotted, dispatching reinforcements to Terminal M005. S-10 Pest destroyed. U-05 Engineer destroyed. S-10 Pest destroyed. Critical hit (Destroy). Lgt. Cannon destroyed. S-10 Pest destroyed. S-10 Pest knocked back. Destroyed Lgt. Ion Engine. Lgt. Cannon destroyed. Acquired 2 matter. Lgt. Nuclear Core destroyed. Acquired 13 matter. Map ----- +----------------------------------------------------+ | | | | | | | | | | | | | | | | | | | | | | | | | | | ???????????#########????????????????????????????? | | ???????????# T #????????????????????????????? | | ######?????# """ #????????????????????????????? | | # ####### """ ##########???????????????????? | | # # + """ # #???????????????????? | | # # ##### # """ ####????????????????? | | # # #???####/#### """ "" #????????????????? | | # + #???# # """ """#????????????????? | | # # #???# s/g S"#????????????????? | | # # #???# # ####????????????????? | | # # #???##### # #???????????????????? | | # # #???????# # "T" #???????????????????? | | ###### #???????# # """@ #???????????????????? | | ?????# ######### ##########???????????????????? | | ?????# #????????????????????????????? | | ?????# #????????????????????????????? | | ?????# #????????????????????????????? | | ?????#####+##### #????????????????????????????? | | ?????# * # #????????????????????????????? | | ?????# """ # % #????????????????????????????? | | ?????#""""" +* #????????????????????????????? | | ?????#""""" # % #????????????????????????????? | | ?????#""""" #* #????????????????????????????? | | ?????# """ #%%=#????????????????????????????? | | ?????# #=[%#????????????????????????????? | | ?????# #%[ #????????????????????????????? | | ?????###########!% #????????????????????????????? | | ???????????????+%= #????????????????????????????? | | ???????????????# =%#????????????????????????????? | | ???????????????? /????????????????????????????? | | ???????????????? #????????????????????????????? | | ???????????????? #????????????????????????????? | | ???????????????? #????????????????????????????? | | ???????????????? #????????????????????????????? | | ???????????????? #????????????????????????????? | | ???????????????? ?????????????????????????????? | | ????????????????????????????????????????????????? | +----------------------------------------------------+ Best States ------------- Heat Dissipation 28 Energy Generation 14 Energy Capacity 250 Matter Stores 300 Matter Capacity 300 Sight Range 16 Terrain Scan Density 10 Evasion (%) 62 Targeting Accuracy 5 Recoil Reduction 2 Item Schematics ----------------- None Robot Schematics ------------------ None Fabricated ------------ Nothing Alien Tech Used ----------------- None Achievements -------------- System Compromised Challenges ------------ None Game ------ Seed MultinovaMissileTrap Manual? 0 Play Time 00:12:01 Cumulative 3.1 hours Start 2025.01.15 @ 13:17:16 End 2025.01.15 @ 13:27:38 Sessions 1 Manual Loads 0 Difficulty Rogue Special Mode None Game No. 11 Rogue 11 Adventurer 0 Explorer 0 Win Type - Total 0 Types 0/0/0/0/0/0/0/0/0 Lore% 1 Gallery% 8 Achievement% 9 Wizard Run 0 Options --------- Layout 1 ASCII 0 Keyboard 0 Movement Mouse Keybinds 0 Fullscreen 1 Font 24/Smallcaps Map View 25x20 Zoom Use 86% Tactical HUD 0 Map Filters NONE Filters NONE Steam 1 RUN: 892685ec-8da3-4f29-a1e6-a6de99500aca